bitfinex/quotes_ETHUSD_20250115
["timestamp","ask_amount","ask_price","bid_price","bid_amount"]
[1736945045715,12.36871102,3214.8,3214.7,76.78717599]
[1736945046015,12.36871102,3214.8,3214.7,72.79941312]
[1736945046524,11.59931102,3214.8,3214.7,52.0363002]
[1736945046889,11.59931102,3214.8,3214.7,50.48597733]
[1736945047098,0.25,3214.4,3212.7,0.193]
[1736945047411,3.11188,3213.5,3212.7,0.193]
[1736945047717,3.423068,3213.5,3212.7,0.193]
[1736945048216,0.311188,3213.5,3212.7,0.193]
[1736945048615,3.0,3213.9,3212.7,0.193]
[1736945048918,3.11168,3213.7,3212.7,0.193]
[1736945050711,3.11152,3213.9,3212.8,0.7973]
[1736945051846,3.11121,3214.2,3213.0,0.7973]
[1736945052041,3.11121,3214.2,3213.1,0.44021374]
[1736945052200,3.11084,3214.6,3213.4,3.11187]
[1736945052393,3.11084,3214.6,3213.5,0.7973]
[1736945052593,3.11084,3214.6,3213.6,0.193]
[1736945053241,3.11091,3214.5,3213.6,0.193]
[1736945053808,0.311091,3214.5,3213.6,0.193]
[1736945054010,0.00625222,3214.8,3213.6,0.193]
[1736945054214,3.1112,3214.2,3213.6,0.193]
[1736945054430,3.11134,3214.1,3213.6,0.193]
[1736945054633,3.0,3214.5,3213.2,0.7973]
[1736945054838,3.57371271,3214.3,3212.7,0.7973]
[1736945054994,3.11166,3213.8,3212.7,0.7973]
[1736945055943,3.1114,3214.0,3212.8,3.11251]
[1736945056144,3.1114,3214.0,3212.9,6.86135248]
[1736945057097,0.35737127,3214.2,3212.9,2.95162248]
[1736945057303,4.607038,3215.2,3213.4,0.7973]
[1736945057304,3.11071,3214.7,3213.4,0.7973]
[1736945057528,2.95162248,3214.9,3213.5,0.193]
[1736945057529,3.11089,3214.6,3213.5,0.193]
[1736945058376,6.06191248,3215.2,3213.7,0.7973]
[1736945058377,3.11689222,3214.8,3213.7,0.7973]
[1736945058653,3.11074,3214.7,3213.8,0.7806]
[1736945059261,3.11085,3214.6,3213.8,0.7806]
[1736945060210,3.42256022,3214.6,3213.8,0.7806]
[1736945060864,0.31171022,3214.6,3213.8,0.7806]
[1736945061071,3.11108,3214.4,3213.8,0.7806]
[1736945061232,3.00625222,3214.8,3213.5,0.7806]
[1736945061423,3.11143,3214.0,3213.5,0.7806]
[1736945061618,3.11151,3213.9,3213.5,0.7806]
[1736945063058,3.11151,3213.9,3212.9,2.95162248]
[1736945063059,3.0,3214.2,3212.9,0.7806]
[1736945063260,3.11171,3213.7,3212.9,0.7806]
[1736945067451,3.11149,3213.9,3212.9,0.7806]
[1736945067649,3.1116,3213.8,3212.9,0.7806]
[1736945067858,0.00625222,3214.8,3213.1,0.7806]
[1736945068187,0.00625222,3214.8,3213.5,0.7806]
[1736945068188,3.11088,3214.6,3213.5,0.7806]
[1736945068380,0.62278022,3214.6,3213.6,0.7806]
[1736945068701,0.62278022,3214.6,3213.7,0.19]
[1736945068906,3.11101,3214.4,3213.7,0.19]
[1736945069118,3.1111,3214.3,3213.7,0.19]
[1736945069602,0.62278022,3214.6,3213.7,0.19]
[1736945069807,3.11144,3214.0,3213.7,0.19]
[1736945070014,3.1115,3213.9,3213.7,0.19]
[1736945070307,3.1115,3213.9,3213.6,0.7806]
[1736945070712,3.0,3214.3,3213.6,0.7806]
[1736945070915,3.0,3214.3,3213.4,0.19]
[1736945070916,3.11175,3213.7,3213.4,0.19]
[1736945071074,3.11175,3213.7,3213.2,0.7806]
[1736945072083,0.6111,3214.2,3213.2,0.7806]
[1736945072288,3.0,3214.0,3213.2,0.7806]
[1736945072490,3.11186,3213.6,3213.1,0.19]
[1736945072813,0.6111,3214.2,3213.2,0.7806]
[1736945072814,3.7223,3214.2,3213.2,0.7806]
[1736945072993,3.11146,3214.0,3213.2,0.7806]
[1736945073377,0.37223,3214.1,3213.2,0.7806]
[1736945073598,3.11161,3213.8,3213.2,0.7806]
[1736945074412,3.11143,3214.0,3213.2,0.7806]
[1736945076613,0.37223,3214.1,3213.2,0.7806]
[1736945076800,3.11159,3213.8,3213.2,0.7806]
[1736945077547,3.11147,3214.0,3213.2,0.9706]
[1736945078246,3.1115,3213.9,3213.2,0.9706]
[1736945078547,3.42265,3213.9,3213.2,0.9706]
[1736945081626,3.42265,3213.9,3213.2,0.19]
[1736945083148,3.11158,3213.8,3213.2,0.19]
[1736945083458,3.11194,3213.5,3213.2,0.19]
[1736945083659,3.11169,3213.7,3213.2,0.19]
[1736945083809,0.311169,3213.6,3213.2,0.19]
[1736945084446,3.42268,3213.9,3213.2,0.19]
[1736945084647,3.42268,3213.9,3213.3,0.772]
[1736945085245,0.31115,3213.9,3213.3,0.772]
[1736945085447,3.11131,3214.1,3213.3,0.772]
[1736945086168,0.7806,3214.3,3213.3,0.772]
[1736945086370,3.7806,3214.3,3213.3,0.772]
[1736945086569,3.11178,3213.6,3213.3,0.772]
[1736945087756,3.11168,3213.7,3213.3,0.772]
[1736945087971,0.311168,3213.6,3213.3,0.772]
[1736945088865,3.422948,3213.6,3213.3,0.772]
[1736945090181,3.11206,3213.4,3212.9,0.19]
[1736945090487,3.11188,3213.5,3212.9,0.19]
[1736945091150,0.311168,3213.6,3213.0,0.8266]
[1736945093101,3.11146,3214.0,3213.0,3.93892]
[1736945093305,3.89171,3214.3,3213.1,0.8266]
[1736945093611,3.1115,3213.9,3213.1,0.8266]
[1736945094086,3.11165,3213.8,3213.1,0.8266]
[1736945094282,3.11187,3213.5,3213.1,0.8266]
[1736945094506,3.423057,3213.5,3213.1,0.8266]
[1736945095741,3.11205,3213.4,3213.1,0.8266]
[1736945095883,0.311187,3213.5,3213.1,0.8266]
[1736945096096,3.11216,3213.2,3212.9,0.19]
[1736945096832,0.311187,3213.5,3212.9,0.19]
[1736945097028,3.5323897,3213.4,3212.9,0.19]
[1736945097395,3.11206,3213.3,3212.9,0.19]
[1736945097596,3.11206,3213.3,3212.8,0.8266]
[1736945098244,0.4203597,3213.4,3212.8,0.8266]
[1736945098451,3.11201,3213.4,3212.8,0.8266]
[1736945098657,0.7806,3213.6,3212.8,0.8266]
[1736945098963,3.11208,3213.3,3212.8,0.8266]
[1736945099912,0.7806,3213.6,3212.8,0.8266]
[1736945099913,3.11238,3213.0,3212.8,0.8266]
[1736945100335,3.11253,3212.9,3212.3,0.8266]
[1736945100537,0.311253,3212.8,3212.3,0.8266]
[1736945100730,3.893,3213.0,3212.3,0.8266]
[1736945100939,3.11292,3212.5,3212.3,0.8266]
[1736945101126,3.11269,3212.7,3212.3,0.8266]
[1736945101330,3.11251,3212.9,3212.3,0.8266]
[1736945101825,3.11261,3212.8,3212.3,0.8266]
[1736945102158,0.311261,3212.7,3212.3,0.8266]
[1736945103660,3.423971,3212.7,3212.3,0.8266]
[1736945103959,3.11293,3212.5,3212.0,0.9731]
[1736945104762,3.11301,3212.4,3212.0,0.9731]
[1736945105056,3.11276,3212.6,3212.0,0.9731]
[1736945105356,3.8333221,3212.5,3212.0,0.7871]
[1736945108641,3.11304,3212.3,3212.0,0.7871]
[1736945109155,3.11315,3212.2,3212.0,0.7871]
[1736945109318,3.11335,3212.0,3211.6,0.186]
[1736945109518,3.11335,3212.0,3211.3,0.7605]
[1736945109723,3.11335,3212.0,3211.4,0.186]
[1736945110026,3.11342,3211.9,3211.4,0.186]
[1736945110219,3.11352,3211.8,3211.3,0.7605]
[1736945110418,3.11352,3211.8,3211.3,0.9465]
[1736945111282,3.424715,3212.0,3211.3,0.9465]
[1736945111643,0.7806,3212.9,3211.9,3.11341]
[1736945111845,3.11243,3213.0,3212.2,2.95162248]
[1736945112152,3.11247,3212.9,3212.3,0.7605]
[1736945112353,1.39780308,3213.4,3212.3,0.7605]
[1736945112581,3.11281,3212.6,3212.3,0.7605]
[1736945113379,0.7806,3213.1,3212.3,0.7605]
[1736945113592,3.11303,3212.3,3212.2,0.186]
[1736945113962,3.11303,3212.3,3212.0,0.7605]
[1736945114295,3.11293,3212.4,3212.0,0.7605]
[1736945115189,3.11304,3212.3,3212.0,0.7605]
[1736945115692,3.11341,3212.0,3211.7,0.9465]
[1736945115891,0.311304,3212.3,3211.7,0.9465]
[1736945116199,3.311304,3212.3,3211.7,0.9465]
[1736945116691,3.0,3212.6,3211.8,0.7605]
[1736945116995,3.11282,3212.6,3211.8,0.7605]
[1736945117691,3.11305,3212.3,3211.8,0.7605]
[1736945118195,3.11333,3212.0,3211.8,0.7605]
[1736945118919,3.11317,3212.2,3211.8,0.7605]
[1736945119067,0.311317,3212.1,3211.8,0.7605]
[1736945119413,3.11299,3212.4,3211.8,0.7605]
[1736945119566,6.89317,3212.8,3211.8,0.7605]
[1736945119913,3.11286,3212.5,3211.8,0.7605]
[1736945120707,3.0,3212.8,3211.8,0.7605]
[1736945120886,3.11247,3212.9,3211.8,0.7605]
[1736945120887,3.1133,3212.1,3211.8,0.7605]
[1736945121096,3.42463,3212.1,3211.8,0.7605]
[1736945121429,3.11342,3211.9,3211.5,0.9465]
[1736945121570,0.31133,3212.1,3211.5,0.7605]
[1736945121919,0.7806,3212.4,3211.5,0.7605]
[1736945122208,3.11368,3211.7,3211.5,0.7605]
[1736945122501,3.11348,3211.9,3211.5,0.7605]
[1736945122699,3.11353,3211.8,3211.5,0.7605]
[1736945123494,3.11363,3211.7,3211.5,0.7605]
[1736945123683,3.424993,3211.7,3211.5,0.7605]
[1736945124271,3.11371,3211.6,3211.5,0.7605]
[1736945126314,3.11371,3211.6,3210.5,0.1551984]
[1736945126315,3.11418,3211.2,3210.9,0.7605]
[1736945126477,0.7806,3211.6,3210.9,0.7605]
[1736945126478,3.11398,3211.4,3210.9,0.7605]
[1736945127178,3.424993,3211.7,3210.9,0.7605]
[1736945127179,3.11374,3211.6,3210.9,0.7605]
[1736945127398,3.1141,3211.2,3210.9,0.7605]
[1736945127716,3.0,3211.4,3210.9,0.7605]
[1736945127892,3.11446,3210.9,3210.0,0.9455]
[1736945128290,0.7806,3211.3,3210.1,0.7605]
[1736945128513,3.11424,3211.1,3210.2,3.11506]
[1736945128714,3.11424,3211.1,3210.3,0.7605]
[1736945129016,3.425664,3211.1,3210.3,0.7605]
[1736945129319,0.311424,3211.1,3210.4,0.7605]
[1736945129890,3.425624,3211.1,3210.4,0.7605]
[1736945130707,3.0,3210.8,3210.0,0.7605]
[1736945130932,0.611442,3210.7,3210.0,0.7605]
[1736945131131,0.311424,3211.1,3210.1,3.11507]
[1736945131311,0.311424,3211.1,3210.2,0.9455]
[1736945131517,3.11429,3211.0,3210.2,0.9455]
[1736945131808,3.11447,3210.9,3210.2,0.9455]
[1736945132152,5.95162248,3211.3,3210.2,0.9455]
[1736945132347,3.11476,3210.6,3210.2,0.9455]
[1736945132494,3.426236,3210.6,3210.2,0.9455]
[1736945132701,3.11482,3210.5,3210.2,0.9455]
[1736945133013,3.1149,3210.4,3210.2,0.9455]
[1736945134126,3.1149,3210.4,3210.2,0.7605]
[1736945136164,3.0,3210.9,3210.2,0.7605]
[1736945137061,3.11433,3211.0,3210.2,0.7605]
[1736945137256,3.503823,3211.0,3210.2,0.7605]
[1736945137459,0.389493,3211.0,3210.2,0.7605]
[1736945137658,3.0,3211.1,3210.2,0.7605]
[1736945137964,3.11449,3210.8,3210.2,0.7605]
[1736945138514,3.11459,3210.7,3210.2,0.7605]
[1736945139910,2.95162248,3211.4,3210.2,0.7605]
[1736945140110,3.11408,3211.3,3210.4,0.8034]
[1736945140338,3.11408,3211.3,3210.5,0.8034]
[1736945140519,3.0,3211.2,3210.5,0.8034]
[1736945140732,3.11422,3211.1,3210.5,0.8034]
[1736945141049,3.11412,3211.2,3210.5,0.8034]
[1736945141259,0.7806,3211.0,3210.1,0.8034]
[1736945141432,3.11466,3210.7,3210.1,0.8034]
[1736945141626,3.726206,3210.6,3210.1,0.8034]
[1736945142839,3.726206,3210.6,3210.2,0.55]
[1736945145127,0.611466,3210.6,3210.2,0.55]
[1736945145442,3.11456,3210.8,3210.2,0.55]
[1736945145833,3.0,3211.1,3210.3,0.55]
[1736945146164,3.11391,3211.4,3210.9,0.55]
[1736945146352,3.114,3211.3,3210.9,0.55]
[1736945146553,0.3425103,3211.5,3209.9,0.8034]
[1736945146554,0.7806,3211.2,3209.9,0.8034]
[1736945146744,3.11467,3210.7,3210.3,0.185]
[1736945146948,0.311467,3210.6,3210.3,0.185]
[1736945147258,0.311467,3210.6,3210.4,0.55]
[1736945147639,0.311467,3210.6,3210.4,1.3534]
[1736945150630,3.11444,3210.9,3210.4,1.3534]
[1736945152135,3.11426,3211.1,3210.4,1.3534]
[1736945152968,3.11429,3211.0,3210.4,1.3534]
[1736945154681,3.11442,3210.9,3210.4,1.3534]
[1736945154982,3.11402,3211.3,3210.4,1.3534]
[1736945155190,3.1146,3210.7,3210.4,1.3534]
[1736945156498,4.392002,3211.2,3210.4,0.8034]
[1736945156706,3.0,3210.8,3210.1,0.7824]
[1736945156838,3.11468,3210.6,3210.1,0.7824]
[1736945157039,3.11505,3210.3,3210.1,0.7824]
[1736945157758,3.11505,3210.3,3209.4,3.33198463]
[1736945157759,1.41107404,3211.1,3209.9,0.55]
[1736945157967,3.0,3210.8,3210.3,0.55]
[1736945158164,3.0,3210.8,3210.2,0.7824]
[1736945158165,3.11497,3210.3,3210.2,0.7824]
[1736945158648,0.311497,3210.3,3209.8,0.55]
[1736945158849,3.11487,3210.4,3209.8,0.55]
[1736945163061,3.11471,3210.6,3209.8,0.55]
[1736945163262,4.41213492,3211.1,3209.8,0.7824]
[1736945163500,3.11446,3210.9,3210.1,0.55]
[1736945163724,3.11412,3211.2,3210.3,0.55]
[1736945164002,3.11485,3210.5,3210.2,0.7824]
[1736945164884,3.11463,3210.7,3210.2,0.7824]
[1736945165402,3.11475,3210.6,3210.2,0.7824]
[1736945165601,3.11478,3210.5,3210.2,0.7824]
[1736945166144,2.95162248,3210.8,3209.7,0.8116]
[1736945166395,3.11507,3210.2,3209.7,0.8116]
[1736945166693,3.11507,3210.2,3209.8,0.55]
[1736945167061,3.11132386,3210.2,3209.8,0.55]
[1736945167264,3.11536,3209.9,3209.7,0.8116]
[1736945167467,6.1152,3210.1,3209.7,0.8116]
[1736945167673,6.72672,3210.1,3209.7,0.8116]
[1736945167870,3.11527,3210.0,3209.7,0.8116]
[1736945168869,3.61152,3210.1,3209.2,0.8116]
[1736945169469,3.11547,3209.8,3209.3,0.55]
[1736945171375,3.11558,3209.7,3209.3,0.55]
[1736945172794,3.11571,3209.6,3209.3,0.55]
[1736945175103,3.11528,3210.0,3209.3,0.55]
[1736945175502,3.11537,3209.9,3209.3,0.55]
[1736945176465,3.11537,3209.9,3209.2,0.55]
[1736945176665,3.11537,3209.9,3209.4,0.55]
[1736945177413,0.61152,3210.1,3209.4,0.55]
[1736945177705,3.11555,3209.7,3209.4,0.55]
[1736945178726,3.11576,3209.5,3208.8,0.184]
[1736945178897,0.7806,3209.8,3209.0,0.55]
[1736945178898,3.1156,3209.7,3209.0,0.55]
[1736945179894,3.11573,3209.6,3209.0,0.55]
[1736945180526,3.11576,3209.5,3209.0,0.55]
[1736945182129,0.61580437,3210.0,3209.2,0.55]
[1736945182330,3.0,3209.8,3209.2,0.55]
[1736945182484,3.0,3209.8,3209.4,0.55]
[1736945184238,3.11519,3210.1,3209.4,0.55]
[1736945184404,3.11519,3210.1,3208.9,3.0]
[1736945184405,3.11519,3210.1,3209.7,0.7747]
[1736945185806,2.95162248,3210.2,3209.7,0.7747]
[1736945186031,6.48542225,3210.1,3209.0,0.7747]
[1736945186265,3.11581,3209.5,3209.0,2.71884054]
[1736945186669,3.11581,3209.5,3209.1,0.55]
[1736945195487,3.751,3209.8,3209.1,0.55]
[1736945195659,3.11589,3209.4,3209.1,0.55]
[1736945195988,0.311589,3209.4,3209.0,0.7747]
[1736945196191,3.11581,3209.5,3209.1,0.55]
[1736945196488,3.11557,3209.7,3209.0,0.55]
[1736945196691,3.11515,3210.2,3209.3,0.7915]
[1736945196845,3.11515,3210.2,3209.5,0.55]
[1736945197167,3.11515,3210.2,3209.7,0.55]
[1736945197643,3.7728,3210.6,3209.7,0.55]
[1736945197849,3.11525,3210.1,3209.7,0.55]
[1736945198561,3.11526,3210.1,3209.7,0.55]
[1736945198775,3.0,3210.3,3209.6,0.7915]
[1736945198985,3.11581,3209.5,3209.1,0.7915]
[1736945199507,3.11581,3209.5,3209.2,0.55]
[1736945203724,3.11586,3209.4,3209.2,0.55]
[1736945203924,3.0,3209.7,3209.2,0.55]
[1736945204131,3.11577,3209.5,3209.2,0.55]
[1736945206286,3.611548,3209.7,3209.2,0.55]
[1736945206501,6.11559,3209.7,3209.2,0.55]
[1736945206838,3.11573,3209.6,3209.2,0.55]
[1736945206994,3.0,3209.8,3209.2,0.55]
[1736945207341,3.0,3209.8,3208.7,2.12714054]
[1736945207342,3.11604,3209.2,3208.8,0.7937]
[1736945207629,1.0783,3209.7,3208.9,0.55]
[1736945207630,3.11616,3209.1,3208.9,0.55]
[1736945209126,3.11633,3208.9,3208.4,0.781]
[1736945209486,3.0,3209.4,3208.5,0.55]
[1736945209693,3.11619,3209.1,3208.5,0.55]
[1736945210192,3.11599,3209.3,3208.7,0.55]
[1736945210431,3.727699,3209.2,3208.7,0.55]
[1736945211789,0.611599,3209.2,3208.7,0.55]
[1736945211989,3.11622,3209.1,3208.7,0.55]
[1736945213741,3.11624,3209.0,3208.7,0.55]
[1736945215135,3.11635,3208.9,3208.7,0.55]
[1736945215436,3.11644,3208.8,3208.6,0.781]
[1736945216433,3.11627,3209.0,3208.6,0.781]
[1736945216636,3.427897,3209.0,3208.6,0.781]
[1736945217501,3.11602,3209.3,3208.7,0.55]
[1736945217714,3.73472103,3209.6,3208.9,0.55]
[1736945217715,0.61905103,3209.6,3208.9,0.55]
[1736945217897,3.1158,3209.5,3208.9,0.55]
[1736945218498,3.0,3209.6,3209.1,0.55]
[1736945219747,3.0,3209.8,3209.2,0.781]
[1736945220074,3.11521,3210.1,3209.4,0.55]
[1736945220239,3.0,3210.0,3209.4,0.55]
[1736945221514,3.0,3209.9,3209.4,0.55]
[1736945223246,3.11512,3210.2,3209.4,0.55]
[1736945223402,3.11512,3210.2,3209.6,0.55]
[1736945223597,0.62967541,3210.4,3209.7,0.781]
[1736945223830,3.11516,3210.1,3209.7,0.781]
[1736945224033,3.426676,3210.1,3209.7,0.781]
[1736945226577,3.11565,3209.6,3209.3,0.8331]
[1736945226734,3.0,3210.0,3209.2,1.94414054]
[1736945226934,3.0,3210.0,3209.1,0.8331]
[1736945226935,0.7806,3209.6,3209.1,2.77724054]
[1736945227231,3.11631,3209.0,3208.7,2.12714054]
[1736945227439,0.311631,3209.0,3208.7,1.94414054]
[1736945227663,3.11642,3208.8,3208.7,1.94414054]
[1736945227845,3.11642,3208.8,3208.3,0.8331]
[1736945228040,3.11642,3208.8,3208.4,0.55]
[1736945228263,3.11642,3208.8,3208.3,0.8331]
[1736945229936,3.0,3208.9,3208.4,0.55]
[1736945230137,0.9427921,3208.9,3208.3,0.8331]
[1736945230366,0.311631,3209.0,3208.3,0.8331]
[1736945230539,3.11651,3208.8,3208.3,0.8331]
[1736945231234,0.7806,3209.2,3208.4,0.55]
[1736945231452,3.11611,3209.2,3208.5,0.8331]
[1736945231655,3.7806,3209.4,3208.5,0.8331]
[1736945231656,3.0,3209.3,3208.5,0.8331]
[1736945232394,3.0,3209.0,3208.5,0.8331]
[1736945232550,3.1163,3209.0,3208.5,0.8331]
[1736945232750,3.42793,3209.0,3208.5,0.8331]
[1736945233472,3.0,3208.8,3208.5,0.8331]
[1736945233864,0.31163,3209.0,3208.5,0.8331]
[1736945234071,3.1165,3208.8,3208.5,0.8331]
[1736945234595,2.95162248,3209.2,3208.2,0.8331]
[1736945234774,3.11664,3208.6,3208.2,0.8331]
[1736945234980,3.11664,3208.6,3208.3,0.55]
[1736945235677,3.11674,3208.5,3208.1,0.005]
[1736945236193,3.11674,3208.5,3208.1,0.555]
[1736945236764,3.1169,3208.4,3208.1,0.005]
[1736945236965,3.11701,3208.2,3208.1,0.005]
[1736945238954,6.11701,3208.2,3208.1,0.005]
[1736945239556,6.89761,3208.2,3208.1,0.005]
[1736945241202,3.11811,3207.1,3206.5,0.8331]
[1736945241757,3.11791,3207.3,3206.5,0.8331]
[1736945242006,3.0,3207.2,3206.6,0.55]
[1736945242305,3.0,3207.2,3206.5,0.8331]
[1736945242306,3.11808,3207.1,3206.5,0.8331]
[1736945242800,3.0,3207.2,3206.5,0.8331]
[1736945243583,3.11808,3207.1,3206.6,0.55]
[1736945243759,3.0,3207.2,3206.6,0.55]
[1736945244599,3.0,3207.2,3206.7,0.8331]
[1736945244904,3.11793,3207.3,3206.7,0.8331]
[1736945246118,3.0,3207.4,3206.8,0.55]
[1736945246266,3.8979,3207.9,3206.9,0.55]
[1736945246267,3.11757,3207.7,3206.9,0.55]
[1736945246618,3.11731,3207.9,3206.6,2.95162248]
[1736945246762,3.11731,3207.9,3207.2,0.8331]
[1736945247161,3.0,3208.2,3207.3,0.55]
[1736945247407,3.11737,3207.9,3207.3,0.55]
[1736945247606,3.11704,3208.2,3207.3,0.55]
[1736945247825,3.11737,3207.9,3207.3,0.55]
[1736945247973,3.429157,3207.8,3207.3,0.55]
[1736945248315,3.11742,3207.8,3207.3,0.55]
[1736945248609,3.11777,3207.5,3207.2,0.8331]
[1736945248777,3.11782,3207.4,3207.2,0.8331]
[1736945249168,3.11806,3207.2,3206.6,0.8331]
[1736945249418,3.11761,3207.6,3206.6,0.8331]
[1736945249419,0.389866,3207.1,3206.6,0.8331]
[1736945249613,0.7806,3207.6,3206.6,0.8331]
[1736945249779,3.11765,3207.6,3206.9,0.55]
[1736945256159,3.0,3207.7,3206.9,0.55]
[1736945256160,3.11772,3207.5,3206.9,0.55]
[1736945256367,3.11782,3207.4,3206.9,0.55]
[1736945257523,9.06908248,3207.8,3206.9,0.55]
[1736945257524,3.11764,3207.6,3206.9,0.55]
[1736945259303,3.729404,3207.6,3206.9,0.55]
[1736945259499,2.95162248,3208.1,3206.6,0.183]
[1736945259500,0.7806,3208.2,3207.3,0.7975]
[1736945259713,6.69657052,3208.4,3207.5,0.7975]
[1736945259714,0.7806,3208.4,3207.5,0.7975]
[1736945259997,3.11691,3208.3,3207.6,0.55]
[1736945261401,0.311674,3208.5,3207.6,0.55]
[1736945261709,3.5260574,3208.4,3207.6,3.66759]
[1736945261907,0.311674,3208.5,3207.8,0.55]
[1736945262096,3.89689,3209.0,3208.2,0.55]
[1736945262257,0.7806,3209.3,3208.4,0.55]
[1736945262462,3.11592,3209.4,3208.4,0.55]
[1736945262662,0.7806,3209.6,3208.4,0.55]
[1736945262663,3.11607,3209.2,3208.4,0.55]
[1736945262910,0.311607,3209.1,3208.4,0.55]
[1736945264590,3.427777,3209.1,3208.4,0.55]
[1736945265583,0.7806,3209.0,3208.3,0.7975]
[1736945265808,3.89686,3209.0,3208.3,0.7975]
[1736945266018,3.11663,3208.6,3208.3,0.7975]
[1736945266172,0.311663,3208.5,3208.3,0.7975]
[1736945266514,6.89686,3209.0,3208.3,0.7975]
[1736945266900,3.11659,3208.7,3208.3,0.7975]
[1736945269139,3.11663,3208.6,3207.9,0.7975]
[1736945269424,6.89686,3209.0,3207.9,0.7975]
[1736945269425,3.11674,3208.5,3207.9,0.7975]
[1736945270919,3.0,3208.7,3207.9,0.7975]
[1736945271215,3.41667,3208.6,3207.9,0.7975]
[1736945271593,0.3,3208.6,3207.9,0.7975]
[1736945271789,3.11674,3208.5,3207.9,0.7975]
[1736945274635,0.3,3208.6,3207.9,0.7975]
[1736945274933,0.7806,3208.4,3207.9,0.7975]
[1736945275102,3.80189425,3208.3,3207.9,0.7975]
[1736945275430,3.11701,3208.2,3207.9,0.7975]
[1736945281044,0.68489425,3208.3,3207.9,0.7975]
[1736945281246,3.11711,3208.1,3207.9,0.7975]
[1736945281418,3.11721,3208.0,3207.5,0.7912]
[1736945284001,3.0,3208.3,3207.5,0.7912]
[1736945284301,0.7526,3208.1,3207.0,0.7579]
[1736945284626,3.11707,3208.2,3207.2,3.11795]
[1736945284943,3.11716,3208.1,3207.3,0.7579]
[1736945285318,3.11722,3208.0,3207.3,0.7579]
[1736945285519,3.1173,3207.9,3207.3,0.7579]
[1736945289008,3.11779,3207.4,3207.3,0.7579]
[1736945289208,3.11779,3207.4,3206.8,0.7579]
[1736945289434,3.1179,3207.3,3206.8,0.7579]
[1736945290246,3.11798,3207.2,3206.8,0.7579]
[1736945290546,3.11815,3207.1,3206.8,0.7579]
[1736945290704,3.11812,3207.1,3206.8,0.7579]
[1736945291429,0.311779,3207.4,3206.8,0.7579]
[1736945291640,3.51954015,3207.3,3206.8,0.7579]
[1736945292214,3.11799,3207.2,3206.8,0.7579]
[1736945297947,3.11808,3207.1,3206.8,0.7579]
[1736945300070,3.51955015,3207.3,3206.8,0.7579]
[1736945300795,3.118,3207.2,3206.8,0.7579]
[1736945301602,3.50113792,3207.2,3206.8,0.7579]
[1736945302178,3.11827,3206.9,3206.2,0.7858]
[1736945302397,3.11827,3206.9,3206.2,0.9668]
[1736945302601,0.38313792,3207.2,3206.2,0.7858]
[1736945302602,3.11844,3206.8,3206.2,0.7858]
[1736945303411,3.11821,3207.0,3206.2,0.7858]
[1736945303561,3.11799,3207.2,3206.2,3.11895]
[1736945303762,0.40160015,3207.3,3206.4,0.7858]
[1736945304061,3.11808,3207.1,3206.4,0.7858]
[1736945305209,3.1182,3207.0,3206.4,0.7858]
[1736945306207,3.11803,3207.2,3206.4,0.7858]
[1736945306561,3.11815,3207.1,3206.4,0.7858]
[1736945306776,0.311815,3207.0,3206.4,0.7858]
[1736945309414,3.11828,3206.9,3206.4,0.7858]
[1736945309623,3.11839,3206.8,3206.4,0.7858]
[1736945310396,3.11463825,3206.8,3206.4,0.7858]
[1736945310911,3.1183,3206.9,3206.4,0.7858]
[1736945314029,1.24957,3207.3,3206.4,0.7858]
[1736945314180,3.88043,3207.7,3206.7,0.8282]
[1736945314381,2.95162248,3208.2,3206.8,3.11828]
[1736945314382,3.11726,3208.0,3206.8,3.11828]
[1736945314696,3.0,3208.1,3207.1,3.11807]
[1736945314897,3.11717,3208.1,3207.2,0.8282]
[1736945315099,3.872068,3208.1,3207.2,0.8282]
[1736945315428,3.872068,3208.1,3207.0,0.179]
[1736945315429,0.7629,3207.8,3207.0,0.179]
[1736945315723,3.11723,3208.0,3207.1,0.8282]
[1736945317130,3.11702,3208.2,3207.1,0.85937972]
[1736945317427,3.11702,3208.2,3207.1,0.8282]
[1736945318669,3.11702,3208.2,3207.3,0.8282]
[1736945318868,3.11702,3208.2,3207.4,0.8282]
[1736945319073,3.11667,3208.6,3207.6,0.8282]
[1736945319276,0.7629,3208.8,3207.7,3.1174]
[1736945319277,3.11648,3208.8,3207.7,3.1174]
[1736945319458,3.11648,3208.8,3207.8,0.8282]
[1736945319643,3.79958025,3208.8,3207.8,0.8282]
[1736945320073,3.11654,3208.7,3207.8,0.8282]
[1736945321440,3.11672,3208.5,3207.8,0.8282]
[1736945321636,3.63472273,3208.8,3207.8,0.8282]
[1736945321852,3.11665,3208.6,3207.8,0.8282]
[1736945322052,3.11665,3208.6,3207.8,1.240671]
[1736945322765,3.11674,3208.5,3207.8,0.8282]
[1736945322965,3.11662,3208.6,3207.8,0.8282]
[1736945323168,3.11675,3208.5,3207.8,0.8282]
[1736945324058,3.63472273,3208.8,3207.8,0.8282]
[1736945324059,3.11653,3208.7,3207.8,0.8282]
[1736945324455,3.63472273,3208.8,3207.8,0.8282]